[Event "POL-chT 2 Liga 2019"]
[Site "Poronin"]
[Date "2019.09.10"]
[Round "4.54"]
[White "Karykowska, Anna"]
[Black "Kupsik, Joanna"]
[Result "1-0"]
[ECO "B28"]
[WhiteElo "1895"]
[BlackElo "1732"]
[Annotator "NA"]
[PlyCount "63"]
[EventDate "2019.09.07"]
[EventType "team-tourn"]
[EventCountry "POL"]
[SourceTitle "playchess.com"]
[Source "ChessBase"]
[SourceQuality "1"]
[TimeControl "40/5400+30:1800+30"]

1. e4 {[%emt 0:00:00]} c5 {[%emt 0:00:00]} 2. Nf3 {[%emt 0:00:00]} a6 {[%emt 0:00:00]} 3. Nc3 {[%emt 0:00:00]} Nc6 {[%emt 0:00:08]} 4. d4 {[%emt 0:00:47]} cxd4 {[%emt 0:00:24]} 5. Nxd4 {[%emt 0:00:23]} e5 {[%emt 0:04:28]} 6. Nf5 {[%emt 0:13:39]} d6 {[%emt 0:01:00]} 7. Ne3 {[%emt 0:05:32]} Nf6 {[%emt 0:00:24]} 8. a4 {[%emt 0:07:05]} Be6 {[%emt 0:00:53]} 9. Ned5 {[%emt 0:04:54]} Bxd5 {[%emt 0:03:24]} 10. exd5 {[%emt 0:00:21]} Ne7 {[%emt 0:02:30]} 11. a5 {[%emt 0:02:01]} Rc8 {[%emt 0:01:21]} 12. Be3 {[%emt 0:02:11]} Nd7 {[%emt 0:06:24]} 13. Bd3 {[%emt 0:04:42]} Ng6 {[%emt 0:01:22]} 14. O-O {[%emt 0:02:35]} Be7 {[%emt 0:00:29]} 15. Bf5 {[%emt 0:02:15]} O-O {[%emt 0:02:14]} 16. Na4 {[%emt 0:02:23]} Rb8 {[%emt 0:13:12]} 17. Nb6 {[%emt 0:02:12]} Nxb6 {[%emt 0:06:47]} 18. Bxb6 {[%emt 0:00:06]} Qe8 {[%emt 0:00:05]} 19. Bc7 {[%emt 0:04:50]} Ra8 {[%emt 0:01:02]} 20. Qg4 {[%emt 0:01:41]} Qb5 {[%emt 0:02:51]} 21. c4 {[%emt 0:02:21]} Qb4 {[%emt 0:02:46]} 22. Bxg6 {[%emt 0:07:02]} hxg6 {[%emt 0:00:51]} 23. Qd7 {[%emt 0:01:24]} Rfe8 {[%emt 0:02:31]} 24. Rac1 {[%emt 0:04:18]} Rac8 {[%emt 0:08:46]} 25. c5 {[%emt 0:06:28]} dxc5 {[%emt 0:06:22]} 26. d6 {[%emt 0:02:29]} Bf6 {[%emt 0:03:25]} 27. Bb6 {[%emt 0:02:26]} c4 {[%emt 0:04:22]} 28. Rfd1 {[%emt 0:02:20]} Rb8 {[%emt 0:01:11]} 29. Qg4 {[%emt 0:01:19]} Bd8 {[%emt 0:06:51]} 30. Rxc4 {[%emt 0:01:08]} Qb5 {[%emt 0:04:04]} 31. d7 {[%emt 0:01:53]} Re6 {[%emt 0:01:04]} 32. Rc8 {[%emt 0:00:55]} 1-0

[Event "POL-chT 2 Liga 2019"]
[Site "Poronin"]
[Date "2019.09.11"]
[Round "5.1"]
[White "Oglaza, Oskar"]
[Black "Lewicki, Miroslaw"]
[Result "1/2-1/2"]
[ECO "B90"]
[WhiteElo "2351"]
[BlackElo "2351"]
[Annotator "NA"]
[PlyCount "62"]
[EventDate "2019.09.07"]
[EventType "team-tourn"]
[EventCountry "POL"]
[SourceTitle "playchess.com"]
[Source "ChessBase"]
[SourceQuality "1"]
[TimeControl "40/5400+30:1800+30"]

1. e4 {[%emt 0:00:00]} c5 {[%emt 0:00:00]} 2. Nf3 {[%emt 0:00:00]} d6 {[%emt 0:00:35]} 3. d4 {[%emt 0:00:00]} cxd4 {[%emt 0:00:04]} 4. Nxd4 {[%emt 0:00:00]} Nf6 {[%emt 0:00:07]} 5. Nc3 {[%emt 0:00:00]} a6 {[%emt 0:00:08]} 6. Bc4 {[%emt 0:00:00]} g6 {[%emt 0:01:42]} 7. Bb3 {[%emt 0:05:43]} Bg7 {[%emt 0:00:07]} 8. f3 {[%emt 0:00:57]} Nc6 {[%emt 0:02:31]} 9. Be3 {[%emt 0:00:17]} Qc7 {[%emt 0:01:32]} 10. Qd2 {[%emt 0:04:14]} Na5 {[%emt 0:05:06]} 11. O-O-O {[%emt 0:05:53]} Bd7 {[%emt 0:04:42]} 12. Bg5 {[%emt 0:11:06]} Nxb3+ {[%emt 0:01:26]} 13. Nxb3 {[%emt 0:11:13]} Bc6 {[%emt 0:00:39]} 14. Bh6 {[%emt 0:00:36]} Bxh6 {[%emt 0:02:45]} 15. Qxh6 {[%emt 0:00:05]} O-O-O {[%emt 0:00:07]} 16. Nd4 {[%emt 0:06:26]} Kb8 {[%emt 0:01:05]} 17. Qe3 {[%emt 0:12:16]} Rhe8 {[%emt 0:08:02]} 18. Nxc6+ {[%emt 0:06:54]} Qxc6 {[%emt 0:00:40]} 19. Rhe1 {[%emt 0:04:33]} Rc8 {[%emt 0:03:12]} 20. e5 {[%emt 0:01:22]} dxe5 {[%emt 0:00:36]} 21. Qxe5+ {[%emt 0:00:03]} Qc7 {[%emt 0:02:14]} 22. g4 {[%emt 0:09:41]} Qxe5 {[%emt 0:03:01]} 23. Rxe5 {[%emt 0:00:03]} e6 {[%emt 0:01:10]} 24. g5 {[%emt 0:00:25]} Nh5 {[%emt 0:00:28]} 25. Ne4 {[%emt 0:00:32]} Red8 {[%emt 0:01:34]} 26. Nd6 {[%emt 0:06:39]} Rc7 {[%emt 0:03:48]} 27. Re4 {[%emt 0:00:08]} Rcd7 {[%emt 0:02:49]} 28. Red4 {[%emt 0:00:04]} Kc7 {[%emt 0:03:19]} 29. Rc4+ {[%emt 0:00:12]} Kb8 {[%emt 0:01:11]} 30. Rcd4 {[%emt 0:00:04]} Kc7 {[%emt 0:01:06]} 31. Rc4+ {[%emt 0:00:29]} Kb8 {[%emt 0:00:05]} 1/2-1/2

[Event "POL-chT 2 Liga 2019"]
[Site "Poronin"]
[Date "2019.09.11"]
[Round "5.3"]
[White "Licznerski, Lukasz"]
[Black "Mis, Mieszko"]
[Result "1/2-1/2"]
[ECO "B40"]
[WhiteElo "2356"]
[BlackElo "2320"]
[Annotator "NA"]
[PlyCount "70"]
[EventDate "2019.09.07"]
[EventType "team-tourn"]
[EventCountry "POL"]
[SourceTitle "playchess.com"]
[Source "ChessBase"]
[SourceQuality "1"]
[TimeControl "40/5400+30:1800+30"]

1. e4 {[%emt 0:03:23]} c5 {[%emt 0:00:00]} 2. Nf3 {[%emt 0:00:51]} e6 {[%emt 0:00:01]} 3. c3 {[%emt 0:01:42]} d5 {[%emt 0:02:37]} 4. e5 {[%emt 0:00:58]} d4 {[%emt 0:08:30]} 5. Bd3 {[%emt 0:00:27]} Nc6 {[%emt 0:01:28]} 6. O-O {[%emt 0:00:54]} Nge7 {[%emt 0:03:42]} 7. Be4 {[%emt 0:06:48]} Qc7 {[%emt 0:10:42]} 8. Re1 {[%emt 0:01:32]} Ng6 {[%emt 0:03:24]} 9. Bxc6+ {[%emt 0:11:44]} bxc6 {[%emt 0:10:18]} 10. cxd4 {[%emt 0:03:17]} cxd4 {[%emt 0:00:33]} 11. Qa4 {[%emt 0:00:02]} Bc5 {[%emt 0:07:42]} 12. b3 {[%emt 0:14:29]} O-O {[%emt 0:05:42]} 13. Ba3 {[%emt 0:03:31]} Bxa3 {[%emt 0:02:28]} 14. Nxa3 {[%emt 0:00:02]} c5 {[%emt 0:01:26]} 15. Nb5 {[%emt 0:05:04]} Qb6 {[%emt 0:01:35]} 16. Nd6 {[%emt 0:00:29]} Nxe5 {[%emt 0:02:06]} 17. Rxe5 {[%emt 0:00:17]} Qxd6 {[%emt 0:00:07]} 18. Qc4 {[%emt 0:00:36]} Bb7 {[%emt 0:06:22]} 19. Qxc5 {[%emt 0:04:15]} Qd7 {[%emt 0:02:26]} 20. Qxd4 {[%emt 0:02:17]} Qxd4 {[%emt 0:00:29]} 21. Nxd4 {[%emt 0:00:03]} Rad8 {[%emt 0:00:51]} 22. Nf3 {[%emt 0:00:43]} Bxf3 {[%emt 0:01:09]} 23. gxf3 {[%emt 0:00:02]} Rxd2 {[%emt 0:00:05]} 24. Ra5 {[%emt 0:00:14]} Rd7 {[%emt 0:07:51]} 25. Rc1 {[%emt 0:00:02]} g6 {[%emt 0:02:27]} 26. Rc4 {[%emt 0:12:58]} Rb8 {[%emt 0:00:39]} 27. Kf1 {[%emt 0:03:24]} Rb6 {[%emt 0:02:55]} 28. Rca4 {[%emt 0:00:21]} Rbb7 {[%emt 0:00:34]} 29. Rc5 {[%emt 0:14:11]} Rd2 {[%emt 0:04:17]} 30. Kg2 {[%emt 0:07:48]} Rbd7 {[%emt 0:03:48]} 31. Rc1 {[%emt 0:01:01]} Rb2 {[%emt 0:03:28]} 32. Rf1 {[%emt 0:00:01]} Rdd2 {[%emt 0:03:26]} 33. Rxa7 {[%emt 0:00:18]} Rxa2 {[%emt 0:00:04]} 34. Rxa2 {[%emt 0:00:45]} Rxa2 {[%emt 0:00:02]} 35. Rb1 {[%emt 0:01:03]} Ra5 {[%emt 0:01:09]} 1/2-1/2

[Event "POL-chT 2 Liga 2019"]
[Site "Poronin"]
[Date "2019.09.11"]
[Round "5.4"]
[White "Szpar, Milosz"]
[Black "Punin, Andrii"]
[Result "1/2-1/2"]
[ECO "B01"]
[WhiteElo "2309"]
[BlackElo "2325"]
[Annotator "NA"]
[PlyCount "68"]
[EventDate "2019.09.07"]
[EventType "team-tourn"]
[EventCountry "POL"]
[SourceTitle "playchess.com"]
[Source "ChessBase"]
[SourceQuality "1"]
[TimeControl "40/5400+30:1800+30"]

1. e4 {[%emt 0:00:00]} d5 {[%emt 0:00:00]} 2. exd5 {[%emt 0:00:00]} Qxd5 {[%emt 0:00:00]} 3. Nc3 {[%emt 0:00:05]} Qd8 {[%emt 0:00:00]} 4. d4 {[%emt 0:00:36]} Nf6 {[%emt 0:00:00]} 5. Nf3 {[%emt 0:02:03]} Bg4 {[%emt 0:00:09]} 6. h3 {[%emt 0:03:37]} Bxf3 {[%emt 0:00:07]} 7. Qxf3 {[%emt 0:00:04]} c6 {[%emt 0:00:11]} 8. Be3 {[%emt 0:02:25]} e6 {[%emt 0:00:08]} 9. Ne4 {[%emt 0:02:05]} Nxe4 {[%emt 0:01:05]} 10. Qxe4 {[%emt 0:00:10]} Qd5 {[%emt 0:03:12]} 11. Bd3 {[%emt 0:02:47]} Qxe4 {[%emt 0:00:32]} 12. Bxe4 {[%emt 0:00:05]} Nd7 {[%emt 0:00:13]} 13. c4 {[%emt 0:04:29]} Nf6 {[%emt 0:03:24]} 14. Bf3 {[%emt 0:01:03]} Bb4+ {[%emt 0:05:19]} 15. Ke2 {[%emt 0:02:34]} O-O-O {[%emt 0:02:51]} 16. Rhd1 {[%emt 0:04:08]} a6 {[%emt 0:05:41]} 17. Rd3 {[%emt 0:02:20]} Bd6 {[%emt 0:02:09]} 18. b4 {[%emt 0:10:01]} e5 {[%emt 0:02:52]} 19. dxe5 {[%emt 0:01:18]} Bxe5 {[%emt 0:01:39]} 20. Rb1 {[%emt 0:06:28]} Rxd3 {[%emt 0:00:14]} 21. Kxd3 {[%emt 0:00:04]} Rd8+ {[%emt 0:00:20]} 22. Ke2 {[%emt 0:02:08]} Bd4 {[%emt 0:00:28]} 23. Bf4 {[%emt 0:03:44]} Be5 {[%emt 0:02:44]} 24. Be3 {[%emt 0:07:03]} Bd4 {[%emt 0:00:24]} 25. Bf4 {[%emt 0:04:03]} Be5 {[%emt 0:00:11]} 26. Bd2 {[%emt 0:09:59]} Rd4 {[%emt 0:04:11]} 27. b5 {[%emt 0:03:13]} axb5 {[%emt 0:02:58]} 28. cxb5 {[%emt 0:00:18]} Ra4 {[%emt 0:00:10]} 29. bxc6 {[%emt 0:01:30]} bxc6 {[%emt 0:01:47]} 30. Bxc6 {[%emt 0:02:20]} Rxa2 {[%emt 0:01:06]} 31. Kd3 {[%emt 0:01:09]} Ra3+ {[%emt 0:00:27]} 32. Kc4 {[%emt 0:00:56]} Ra2 {[%emt 0:01:09]} 33. Kd3 {[%emt 0:01:57]} Ra3+ {[%emt 0:00:09]} 34. Kc4 {[%emt 0:01:58]} Ra2 {[%emt 0:00:10] Kd4} 1/2-1/2

[Event "POL-chT 2 Liga 2019"]
[Site "Poronin"]
[Date "2019.09.11"]
[Round "5.5"]
[White "Kowalczyk, Pawel"]
[Black "Mika, Tomasz"]
[Result "1-0"]
[ECO "A50"]
[WhiteElo "2294"]
[BlackElo "2136"]
[Annotator "NA"]
[PlyCount "83"]
[EventDate "2019.09.07"]
[EventType "team-tourn"]
[EventCountry "POL"]
[SourceTitle "playchess.com"]
[Source "ChessBase"]
[SourceQuality "1"]
[TimeControl "40/5400+30:1800+30"]

1. d4 {[%emt 0:00:45]} Nf6 {[%emt 0:00:15]} 2. c4 {[%emt 0:00:06]} d5 {[%emt 0:00:17]} 3. cxd5 {[%emt 0:00:05]} Nxd5 {[%emt 0:00:43]} 4. e4 {[%emt 0:00:10]} Nb6 {[%emt 0:01:14]} 5. Nc3 {[%emt 0:00:16]} g6 {[%emt 0:01:08]} 6. Nf3 {[%emt 0:08:37]} Bg7 {[%emt 0:01:01]} 7. Be3 {[%emt 0:01:28]} Bg4 {[%emt 0:05:22]} 8. h3 {[%emt 0:00:18]} Bxf3 {[%emt 0:00:26]} 9. gxf3 {[%emt 0:00:02]} O-O {[%emt 0:04:53]} 10. Be2 {[%emt 0:05:42]} e6 {[%emt 0:10:49]} 11. h4 {[%emt 0:00:01]} Nc6 {[%emt 0:01:49]} 12. e5 {[%emt 0:00:08]} Qd7 {[%emt 0:12:23]} 13. Qd2 {[%emt 0:02:03]} Rad8 {[%emt 0:01:41]} 14. Rd1 {[%emt 0:00:37]} Qe7 {[%emt 0:03:52]} 15. Qc1 {[%emt 0:03:25]} f6 {[%emt 0:03:51]} 16. f4 {[%emt 0:00:05]} f5 {[%emt 0:01:34]} 17. h5 {[%emt 0:01:53]} Qb4 {[%emt 0:05:29]} 18. a3 {[%emt 0:01:06]} Qb3 {[%emt 0:01:32]} 19. Rh2 {[%emt 0:18:05]} Nc4 {[%emt 0:07:11]} 20. Nb1 {[%emt 0:00:47]} Nb6 {[%emt 0:08:01]} 21. Nd2 {[%emt 0:00:08]} Qd5 {[%emt 0:00:48]} 22. Nf3 {[%emt 0:00:20]} Rd7 {[%emt 0:03:57]} 23. h6 {[%emt 0:03:40]} Bh8 {[%emt 0:00:36]} 24. Ng5 {[%emt 0:02:14]} Nd8 {[%emt 0:06:34]} 25. Bf3 {[%emt 0:10:37]} Qb3 {[%emt 0:01:50]} 26. Qc3 {[%emt 0:00:24]} Qb5 {[%emt 0:01:54]} 27. b3 {[%emt 0:01:05]} Nd5 {[%emt 0:01:22]} 28. Qc4 {[%emt 0:00:26]} Qa5+ {[%emt 0:00:51]} 29. Bd2 {[%emt 0:01:26]} Qxa3 {[%emt 0:01:28]} 30. Nxe6 {[%emt 0:06:33]} Nb6 {[%emt 0:00:44]} 31. Nxf8+ {[%emt 0:00:02]} Nxc4 {[%emt 0:00:33]} 32. Nxd7 {[%emt 0:00:03]} c6 {[%emt 0:03:08]} 33. Rh3 {[%emt 0:06:44]} Nb2 {[%emt 0:01:58]} 34. Be2 {[%emt 0:00:28]} Qe7 {[%emt 0:00:45]} 35. Rb1 {[%emt 0:05:45]} Qxd7 {[%emt 0:00:53]} 36. Rxb2 {[%emt 0:00:01]} b5 {[%emt 0:02:16]} 37. Rd3 {[%emt 0:01:59]} Ne6 {[%emt 0:00:59]} 38. d5 {[%emt 0:02:29]} cxd5 {[%emt 0:00:43]} 39. Bf3 {[%emt 0:00:08]} d4 {[%emt 0:00:57]} 40. Rc2 {[%emt 0:00:00]} a6 {[%emt 0:00:00]} 41. Rc6 {[%emt 0:00:17]} g5 {[%emt 0:12:46]} 42. Rd6 {[%emt 0:00:17]} 1-0

[Event "POL-chT 2 Liga 2019"]
[Site "Poronin"]
[Date "2019.09.11"]
[Round "5.6"]
[White "Swiech, Joanna"]
[Black "Starosta, Martyna"]
[Result "1-0"]
[ECO "D83"]
[WhiteElo "2055"]
[BlackElo "1814"]
[Annotator "NA"]
[PlyCount "71"]
[EventDate "2019.09.07"]
[EventType "team-tourn"]
[EventCountry "POL"]
[SourceTitle "playchess.com"]
[Source "ChessBase"]
[SourceQuality "1"]
[TimeControl "40/5400+30:1800+30"]

1. d4 {[%emt 0:00:00]} Nf6 {[%emt 0:00:00]} 2. c4 {[%emt 0:00:00]} g6 {[%emt 0:00:00]} 3. Nc3 {[%emt 0:00:00]} d5 {[%emt 0:00:00]} 4. Bf4 {[%emt 0:00:00]} Bg7 {[%emt 0:00:27]} 5. e3 {[%emt 0:00:09]} O-O {[%emt 0:00:28]} 6. Rc1 {[%emt 0:00:27]} c5 {[%emt 0:01:43]} 7. dxc5 {[%emt 0:00:20]} Qa5 {[%emt 0:00:51]} 8. cxd5 {[%emt 0:00:41]} Ne4 {[%emt 0:01:53]} 9. Nge2 {[%emt 0:15:19]} Nxc5 {[%emt 0:07:19]} 10. a3 {[%emt 0:02:37]} Nca6 {[%emt 0:07:48]} 11. Nd4 {[%emt 0:04:57]} e5 {[%emt 0:04:21]} 12. dxe6 {[%emt 0:02:33]} fxe6 {[%emt 0:01:47]} 13. Nb3 {[%emt 0:13:52]} Qf5 {[%emt 0:04:21]} 14. Bd3 {[%emt 0:01:15]} Qf7 {[%emt 0:00:34]} 15. O-O {[%emt 0:02:53]} e5 {[%emt 0:00:50]} 16. Bg3 {[%emt 0:12:17]} Be6 {[%emt 0:02:20]} 17. Nd2 {[%emt 0:01:03]} Nc5 {[%emt 0:01:56]} 18. Bb1 {[%emt 0:08:08]} Rd8 {[%emt 0:05:27]} 19. Qe2 {[%emt 0:00:25]} Nc6 {[%emt 0:05:33]} 20. Nce4 {[%emt 0:01:33]} Nb3 {[%emt 0:02:43]} 21. Nxb3 {[%emt 0:00:43]} Bxb3 {[%emt 0:00:09]} 22. Nc5 {[%emt 0:03:44]} Bd5 {[%emt 0:03:32]} 23. Be4 {[%emt 0:03:54]} Na5 {[%emt 0:14:04]} 24. Bxd5 {[%emt 0:01:29]} Rxd5 {[%emt 0:01:01]} 25. b4 {[%emt 0:01:58]} b6 {[%emt 0:01:59]} 26. Ne4 {[%emt 0:04:37]} Nb7 {[%emt 0:00:54]} 27. Ng5 {[%emt 0:01:27]} Qd7 {[%emt 0:01:18]} 28. e4 {[%emt 0:02:29]} Rd6 {[%emt 0:04:36]} 29. Qc4+ {[%emt 0:01:30]} Kf8 {[%emt 0:00:30]} 30. Nxh7+ {[%emt 0:00:10]} Ke7 {[%emt 0:01:11]} 31. Bh4+ {[%emt 0:00:21]} Bf6 {[%emt 0:00:21]} 32. Nxf6 {[%emt 0:00:39]} Rxf6 {[%emt 0:00:27]} 33. Rfd1 {[%emt 0:01:40]} Nd6 {[%emt 0:00:52]} 34. Qd5 {[%emt 0:01:19]} Rd8 {[%emt 0:00:43]} 35. Qxe5+ {[%emt 0:00:13]} Qe6 {[%emt 0:00:16]} 36. Bxf6+ {[%emt 0:00:16]} 1-0

[Event "POL-chT 2 Liga 2019"]
[Site "Poronin"]
[Date "2019.09.11"]
[Round "5.9"]
[White "Brzeski, Maciej"]
[Black "Tymrakiewicz, Rafal"]
[Result "1-0"]
[ECO "B12"]
[WhiteElo "2339"]
[BlackElo "2257"]
[Annotator "NA"]
[PlyCount "118"]
[EventDate "2019.09.07"]
[EventType "team-tourn"]
[EventCountry "POL"]
[SourceTitle "playchess.com"]
[Source "ChessBase"]
[SourceQuality "1"]
[TimeControl "40/5400+30:1800+30"]

1. e4 {[%emt 0:00:00]} c6 {[%emt 0:04:49]} 2. d4 {[%emt 0:00:00]} g6 {[%emt 0:00:37]} 3. f4 {[%emt 0:02:59]} Bg7 {[%emt 0:03:00]} 4. Nf3 {[%emt 0:00:45]} d5 {[%emt 0:01:36]} 5. e5 {[%emt 0:00:09]} Bg4 {[%emt 0:00:44]} 6. h3 {[%emt 0:01:07]} Bxf3 {[%emt 0:02:37]} 7. Qxf3 {[%emt 0:00:04]} e6 {[%emt 0:02:50]} 8. Be3 {[%emt 0:03:31]} Qb6 {[%emt 0:10:36]} 9. b3 {[%emt 0:05:20]} Ne7 {[%emt 0:03:27]} 10. Bd3 {[%emt 0:01:30]} Nd7 {[%emt 0:02:34]} 11. Nd2 {[%emt 0:12:58]} f6 {[%emt 0:06:54]} 12. O-O {[%emt 0:09:51]} O-O {[%emt 0:11:28]} 13. Qe2 {[%emt 0:07:07]} c5 {[%emt 0:14:47]} 14. Nf3 {[%emt 0:13:12]} fxe5 {[%emt 0:04:12]} 15. dxe5 {[%emt 0:00:04]} Bh6 {[%emt 0:09:29]} 16. g3 {[%emt 0:01:30]} Nf5 {[%emt 0:02:33]} 17. Bf2 {[%emt 0:01:11]} Nxg3 {[%emt 0:01:29]} 18. Bxg3 {[%emt 0:01:57]} c4+ {[%emt 0:00:14]} 19. Bf2 {[%emt 0:02:25]} cxd3 {[%emt 0:00:15]} 20. Qxd3 {[%emt 0:12:14]} Qb4 {[%emt 0:06:21]} 21. Nd4 {[%emt 0:02:03]} Qe7 {[%emt 0:01:30]} 22. Bg3 {[%emt 0:05:51]} Nc5 {[%emt 0:01:14]} 23. Qf3 {[%emt 0:00:30]} Ne4 {[%emt 0:00:28]} 24. Qg4 {[%emt 0:00:21]} Nxg3 {[%emt 0:05:31]} 25. Qxg3 {[%emt 0:00:01]} Kh8 {[%emt 0:01:37]} 26. Kh1 {[%emt 0:00:56]} Rac8 {[%emt 0:00:28]} 27. Rad1 {[%emt 0:03:34]} b5 {[%emt 0:00:29]} 28. Qg4 {[%emt 0:01:50]} Rfe8 {[%emt 0:00:08]} 29. Rd3 {[%emt 0:00:04]} b4 {[%emt 0:00:18]} 30. h4 {[%emt 0:00:27]} Rc3 {[%emt 0:01:28]} 31. Rxc3 {[%emt 0:01:11]} bxc3 {[%emt 0:00:01]} 32. Rf3 {[%emt 0:00:24]} Qf7 {[%emt 0:01:30]} 33. Kg2 {[%emt 0:00:36]} a6 {[%emt 0:00:23]} 34. Ne2 {[%emt 0:08:29]} Rc8 {[%emt 0:00:27]} 35. Qh3 {[%emt 0:00:05]} Kg7 {[%emt 0:00:50]} 36. Nd4 {[%emt 0:00:33]} Re8 {[%emt 0:00:11]} 37. Qg4 {[%emt 0:00:52]} Kh8 {[%emt 0:00:07]} 38. Ne2 {[%emt 0:00:38]} Rc8 {[%emt 0:00:53]} 39. Qh3 {[%emt 0:00:25]} Bf8 {[%emt 0:00:31]} 40. Rxc3 {[%emt 0:00:00]} Rxc3 {[%emt 0:00:00]} 41. Qxc3 {[%emt 0:03:15]} Qf5 {[%emt 0:05:22]} 42. Qc8 {[%emt 0:18:57]} Qg4+ {[%emt 0:13:30]} 43. Ng3 {[%emt 0:04:28]} Kg7 {[%emt 0:04:51]} 44. Qd7+ {[%emt 0:00:26]} Kg8 {[%emt 0:04:06]} 45. c4 {[%emt 0:01:12]} dxc4 {[%emt 0:00:51]} 46. bxc4 {[%emt 0:00:02]} Bh6 {[%emt 0:01:13]} 47. Qd8+ {[%emt 0:04:40]} Kf7 {[%emt 0:02:20]} 48. Qf6+ {[%emt 0:01:26]} Kg8 {[%emt 0:01:08]} 49. Qd8+ {[%emt 0:00:52]} Kf7 {[%emt 0:00:19]} 50. Qd7+ {[%emt 0:00:56]} Kf8 {[%emt 0:01:10]} 51. f5 {[%emt 0:00:27]} Bf4 {[%emt 0:00:52]} 52. Qc8+ {[%emt 0:00:24]} Kf7 {[%emt 0:00:41]} 53. Qxe6+ {[%emt 0:00:12]} Kf8 {[%emt 0:00:38]} 54. Qc8+ {[%emt 0:00:41]} Kf7 {[%emt 0:00:31]} 55. Qd7+ {[%emt 0:00:12]} Kf8 {[%emt 0:00:17]} 56. Qd8+ {[%emt 0:00:08]} Kg7 {[%emt 0:00:59]} 57. f6+ {[%emt 0:00:13]} Kf7 {[%emt 0:00:25]} 58. Qe7+ Kg8 59. Qd7 Kh8 1-0

[Event "POL-chT 2 Liga 2019"]
[Site "Poronin"]
[Date "2019.09.11"]
[Round "5.10"]
[White "Szoen, Dariusz"]
[Black "Lukasiewicz, Grzegorz"]
[Result "1-0"]
[ECO "D37"]
[WhiteElo "2415"]
[BlackElo "2164"]
[Annotator "NA"]
[PlyCount "69"]
[EventDate "2019.09.07"]
[EventType "team-tourn"]
[EventCountry "POL"]
[SourceTitle "playchess.com"]
[Source "ChessBase"]
[SourceQuality "1"]
[TimeControl "40/5400+30:1800+30"]

1. d4 {[%emt 0:00:00]} d5 {[%emt 0:00:05]} 2. Nf3 {[%emt 0:00:00]} Nf6 {[%emt 0:02:26]} 3. c4 {[%emt 0:00:00]} e6 {[%emt 0:00:19]} 4. Nc3 {[%emt 0:00:18]} Be7 {[%emt 0:00:41]} 5. e3 {[%emt 0:00:35]} O-O {[%emt 0:01:11]} 6. Qc2 {[%emt 0:01:57]} b6 {[%emt 0:03:59]} 7. Bd3 {[%emt 0:07:17]} Bb7 {[%emt 0:02:39]} 8. cxd5 {[%emt 0:04:41]} exd5 {[%emt 0:00:28]} 9. g4 {[%emt 0:00:41]} Nbd7 {[%emt 0:14:23]} 10. g5 {[%emt 0:04:57]} Ne4 {[%emt 0:00:29]} 11. Nxe4 {[%emt 0:03:17]} dxe4 {[%emt 0:00:10]} 12. Bxe4 {[%emt 0:00:02]} Bxe4 {[%emt 0:00:20]} 13. Qxe4 {[%emt 0:00:05]} Bxg5 {[%emt 0:01:10]} 14. Bd2 {[%emt 0:04:51]} Bf6 {[%emt 0:17:20]} 15. Bc3 {[%emt 0:03:53]} Re8 {[%emt 0:07:27]} 16. Qf4 {[%emt 0:08:42]} c5 {[%emt 0:03:06]} 17. Rd1 {[%emt 0:11:08]} Qe7 {[%emt 0:03:25]} 18. O-O {[%emt 0:03:14]} Rac8 {[%emt 0:03:26]} 19. Rfe1 {[%emt 0:00:28]} cxd4 {[%emt 0:08:10]} 20. exd4 {[%emt 0:06:05]} Qd8 {[%emt 0:01:36]} 21. Ne5 {[%emt 0:01:58]} Qc7 {[%emt 0:01:28]} 22. Qf5 {[%emt 0:01:22]} Bxe5 {[%emt 0:01:05]} 23. dxe5 {[%emt 0:00:19]} Nf8 {[%emt 0:00:05]} 24. Rd6 {[%emt 0:03:01]} Re6 {[%emt 0:00:10]} 25. Red1 {[%emt 0:00:53]} Rce8 {[%emt 0:00:20]} 26. Qd3 {[%emt 0:01:07]} Qe7 {[%emt 0:02:34]} 27. f4 {[%emt 0:02:14]} Rg6+ {[%emt 0:08:04]} 28. Kh1 Qh4 {[%emt 0:13:01]} 29. Qf3 {[%emt 0:14:59]} Ne6 {[%emt 0:02:13]} 30. f5 {[%emt 0:03:22]} Ng5 {[%emt 0:00:35]} 31. Qc6 {[%emt 0:00:45]} Rf8 {[%emt 0:02:19]} 32. fxg6 {[%emt 0:00:37]} Ne4 {[%emt 0:00:06]} 33. gxh7+ {[%emt 0:01:12]} Kxh7 {[%emt 0:00:22]} 34. Re1 {[%emt 0:05:34]} Nf2+ {[%emt 0:00:32]} 35. Kg2 {[%emt 0:00:22]} 1-0